{"text_format":"3","workbook":"xlsx","n_sheets":2,"sheets":["Sheet1","Sheet2"],"not_rendered":{"defined_names":3},"read":"whole","date_system":"1900"}

{"sheet":"Sheet1","index":0,"n_rows":247,"n_cols":10,"rows_kept":247,"merged":[[0,0,0,6],[2,0,2,9],[4,0,4,9],[248,0,248,4]]}
["FAKULTET PROMETNIH ZNANOSTI",{"$nulls":8},"Datum ispisa: 23.03.2026"]
[]
["Izvješće o isplatama - po Naputku"]
[]
["Godina: 2026. Datum dokumenta: od 01.02.2026 do 28.02.2026. Konto izvršenja: od 3 do 59. Ovlaštenja:"]
["Redni broj","Naziv primatelja","OIB","Sjedište (mjesto i adresa)","Iznos","Valuta","Godina i mjesec","Vrsta rashoda","Naziv konta","Naziv isplatitelja"]
[{"$f":"ROW(A1)","v":{"v":1,"d":"1."}},"ĆURIĆ JOZO-ZAGREB BRUSIONICA,IZR.KLJUČ.","GDPR","GDPR",{"v":3.5,"d":"3.50"},"EUR","2026/2","3224","Materijal i dijelovi za tekuće i investicijsko održavanje","FAKULTET PROMETNIH ZNANOSTI"]
[{"$f":"ROW(A2)","v":{"v":2,"d":"2."}},"PAGAR D.O.O. RESTORAN BOTA ŠARE","60966016226","ZVONIMIROVA 124,, Zagreb",{"v":1118,"d":"1,118.00"},"EUR","2026/2","3293","Reprezentacija","FAKULTET PROMETNIH ZNANOSTI"]
[{"v":3,"d":"3."},"FINA-FINANCIJSKA AGENCIJA","85821130368","ZAGREB,UL.GRADA VUKOVARA 70,, ZAGREB",{"v":123.5,"d":"123.50"},"EUR","2026/2","3221","Uredski materijal i ostali materijalni rashodi","FAKULTET PROMETNIH ZNANOSTI"]
[{"v":4,"d":"4."},"QUAHWA D.O.O.","96516152119","ULICA NIKOLE TESLE 9/1, ZAGREB",{"v":87.5,"d":"87.50"},"EUR","2026/2","3232","Usluge tekućeg i investicijskog održavanja","FAKULTET PROMETNIH ZNANOSTI"]
[{"v":5,"d":"5."},null,"n.p.","n.p.",{"$f":"19114.69+863.77+300.89","v":{"v":20279.35,"d":"20,279.35"}},"EUR","2026/2","3211","Službena putovanja","FAKULTET PROMETNIH ZNANOSTI"]
[{"v":6,"d":"6."},"REFUNDACIJA ZAPOSLENICI","n.p.","n.p.",{"v":1405.12,"d":"1,405.12"},"EUR","2026/2","3293","Reprezentacija","FAKULTET PROMETNIH ZNANOSTI"]
[{"v":7,"d":"7."},"ADOBE SYSTEMS SOFTWARE IRELAND LTD","n.p.","4-6 RIVERWALK CITYWEST  BUSINESS PARK, DUBLIN 24",298.35,"EUR","2026/2","3235","Zakupnine i najamnine","FAKULTET PROMETNIH ZNANOSTI"]
[{"v":8,"d":"8."},"CLOUDFLARE,INC","n.p.","101 TOWNSEND STREET, SAN FRANCISCO,CALIFORNIA 94107",212.91,"EUR","2026/2","3221","Uredski materijal i ostali materijalni rashodi","FAKULTET PROMETNIH ZNANOSTI"]
[{"v":9,"d":"9."},"CROSSREF PUBLISHERS INTERNATIONAL LINKING","n.p.","PO BOX 719, LYNNFIELD",654.49,"EUR","2026/2","3294","Članarine i norme","FAKULTET PROMETNIH ZNANOSTI"]
[{"v":10,"d":"10."},"OPENAL IRELAND LIMITED","n.p.","117-126 SHERIFF STREET UPPER, DUBLIN",{"v":18.4,"d":"18.40"},"EUR","2026/2","3235","Zakupnine i najamnine","FAKULTET PROMETNIH ZNANOSTI"]
[{"v":11,"d":"11."},"REMARKABLE OPERATIONS B.V.","n.p.","ZUIDPLEIN 116, AMSTERDAM",{"v":630.4,"d":"630.40"},"EUR","2026/2","3221","Uredski materijal i ostali materijalni rashodi","FAKULTET PROMETNIH ZNANOSTI"]
[{"v":12,"d":"12."},"STUDENTSKI CENTAR ZGB","22597784145","SAVSKA CESTA 25,, Zagreb",{"v":4028.15,"d":"4,028.15"},"EUR","2026/2","3237","Intelektualne i osobne usluge","FAKULTET PROMETNIH ZNANOSTI"]
[{"v":13,"d":"13."},"ADMOVEO D.O.O.","26820442079","GRAČANSKA 111, ZAGREB",386.82,"EUR","2026/2","3237","Intelektualne i osobne usluge","FAKULTET PROMETNIH ZNANOSTI"]
[{"v":14,"d":"14."},"KAUFLAND HRVATSKA K.D.","47432874968","DONJE SVETICE 14,, Zagreb",61.64,"EUR","2026/2","3221","Uredski materijal i ostali materijalni rashodi","FAKULTET PROMETNIH ZNANOSTI"]
[{"v":15,"d":"15."},"KONZUM PLUS","62226620908","ZAGREB,, M. ČAVIĆA 1/A",360.96,"EUR","2026/2","3293","Reprezentacija","FAKULTET PROMETNIH ZNANOSTI"]
[{"v":16,"d":"16."},"INSTAR CENTER D.O.O.","64308723629","ANDRIJE KAČIĆA MIOŠIĆA 22C, VELIKA GORICA",{"v":1313,"d":"1,313.00"},"EUR","2026/2","3221","Uredski materijal i ostali materijalni rashodi","FAKULTET PROMETNIH ZNANOSTI"]
[{"v":17,"d":"17."},"MAGAZINSKA KLET-SUPERIOR UGOSTITELJSTVO D.O.O.","80972836106","MAGAZINSKA C.7,, Zagreb",{"v":41.6,"d":"41.60"},"EUR","2026/2","3293","Reprezentacija","FAKULTET PROMETNIH ZNANOSTI"]
[{"v":18,"d":"18."},"HRVATSKA UDRUGA POSLODAVACA","80978339255","RADNIČKA CESTA 37 A, ZAGREB",{"v":337.5,"d":"337.50"},"EUR","2026/2","3294","Članarine i norme","FAKULTET PROMETNIH ZNANOSTI"]
[{"v":19,"d":"19."},"REFUNDACIJA ZAPOSLENICI","n.p.","n.p.",122.86,"EUR","2026/2","3231","Usluge telefona, interneta, pošte i prijevoza","FAKULTET PROMETNIH ZNANOSTI"]
[{"v":20,"d":"20."},"REFUNDACIJA ZAPOSLENICI","n.p.","n.p.",{"v":86.8,"d":"86.80"},"EUR","2026/2","3235","Zakupnine i najamnine","FAKULTET PROMETNIH ZNANOSTI"]
[{"v":21,"d":"21."},"REFUNDACIJA ZAPOSLENICI","n.p.","n.p.",{"v":5905.29,"d":"5,905.29"},"EUR","2026/2","3237","Intelektualne i osobne usluge","FAKULTET PROMETNIH ZNANOSTI"]
[{"v":22,"d":"22."},"MDPI","n.p.","ST.ALBAN-ANLAGE 66,, BASEL",{"v":3432.62,"d":"3,432.62"},"EUR","2026/2","3213","Stručno usavršavanje zaposlenika","FAKULTET PROMETNIH ZNANOSTI"]
[{"v":23,"d":"23."},"OVERLEAF","n.p.","6 BRISET STREET, LONDON",223.75,"EUR","2026/2","3235","Zakupnine i najamnine","FAKULTET PROMETNIH ZNANOSTI"]
[{"v":24,"d":"24."},"UNIVERSITY OF EAST SARAJEVO FACULTY OF TRANSPORT AND TRAFFIC ENGINEERING","n.p.","VOJVODE MIšIćA 52, DOBOJ",{"v":150,"d":"150.00"},"EUR","2026/2","3213","Stručno usavršavanje zaposlenika","FAKULTET PROMETNIH ZNANOSTI"]
[{"v":25,"d":"25."},"VENETO DOMUS D.O.O.","n.p.","RIBIŠKI TRG 9, KOPER",{"v":421.5,"d":"421.50"},"EUR","2026/2","3211","Službena putovanja","FAKULTET PROMETNIH ZNANOSTI"]
[{"v":26,"d":"26."},null,"n.p.","n.p.",{"v":4000,"d":"4,000.00"},"EUR","2026/2","3213","Stručno usavršavanje zaposlenika","FAKULTET PROMETNIH ZNANOSTI"]
[{"v":27,"d":"27."},"BATAK GRIL FILA USLUGE D.O.O.","03777302074","RADNIČKA CESTA 37 B,, Zagreb",{"v":143.7,"d":"143.70"},"EUR","2026/2","3293","Reprezentacija","FAKULTET PROMETNIH ZNANOSTI"]
[{"v":28,"d":"28."},"Z-EL D.O.O.","11374156664","INDUSTRIJSKA CESTA 28,, Zagreb",{"v":499,"d":"499.00"},"EUR","2026/2","4225","Instrumenti i uređaji","FAKULTET PROMETNIH ZNANOSTI"]
[{"v":29,"d":"29."},"RESTAURAN ILSECONDO","16756522442","AVENIJA DUBROVNIK 12,, Zagreb",{"v":113,"d":"113.00"},"EUR","2026/2","3293","Reprezentacija","FAKULTET PROMETNIH ZNANOSTI"]
[{"v":30,"d":"30."},"ENTRIO TEHNOLOGIJE D.O.O.","30513194761","RADNIČKA 54, ZAGREB",{"v":400,"d":"400.00"},"EUR","2026/2","3233","Usluge promidžbe i informiranja","FAKULTET PROMETNIH ZNANOSTI"]
[{"v":31,"d":"31."},"DUPIN D.O.O.","31062429092","DVORNIČIĆEVA 22,, Zagreb",18.26,"EUR","2026/2","3293","Reprezentacija","FAKULTET PROMETNIH ZNANOSTI"]
[{"v":32,"d":"32."},"DUPIN D.O.O.","31062429092","DVORNIČIĆEVA 22,, Zagreb",{"v":701.8,"d":"701.80"},"EUR","2026/2","3299","Ostali nespomenuti rashodi poslovanja","FAKULTET PROMETNIH ZNANOSTI"]
[{"v":33,"d":"33."},"GLIGORA DELIKATESE D.O.O.","31635744688","FIGURICA 22A,, Kolan",65.33,"EUR","2026/2","3293","Reprezentacija","FAKULTET PROMETNIH ZNANOSTI"]
[{"v":34,"d":"34."},"SANCTA DOMENICA D.O.O.","35409850545","DR. FRANJE TUĐMANA 69,, Sveta Nedelja",{"v":21,"d":"21.00"},"EUR","2026/2","3221","Uredski materijal i ostali materijalni rashodi","FAKULTET PROMETNIH ZNANOSTI"]
[{"v":35,"d":"35."},"ZNAK HRVATSKA UDRUGA ZA ZNANSTVENU KOMUN","36143714458","ANDRIJE KAČIĆA MIOŠIĆA 23, ZAGREB",{"v":70,"d":"70.00"},"EUR","2026/2","3294","Članarine i norme","FAKULTET PROMETNIH ZNANOSTI"]
[{"v":36,"d":"36."},"KODAK CENTAR","56307720607","MAKSIMIRSKA 112A,, Zagreb",{"v":58,"d":"58.00"},"EUR","2026/2","3221","Uredski materijal i ostali materijalni rashodi","FAKULTET PROMETNIH ZNANOSTI"]
[{"v":37,"d":"37."},"AGENCIJA ZA KOMERCIJALNU DJELATNOST","58843087891","SAVSKA CESTA 31,, Zagreb",{"v":1953.24,"d":"1,953.24"},"EUR","2026/2","3239","Ostale usluge","FAKULTET PROMETNIH ZNANOSTI"]
[{"v":38,"d":"38."},"NARODNE NOVINE D.D.","64546066176","SAVSKI GAJ XIII. PUT 6,, Zagreb",{"v":1374.71,"d":"1,374.71"},"EUR","2026/2","3221","Uredski materijal i ostali materijalni rashodi","FAKULTET PROMETNIH ZNANOSTI"]
[{"v":39,"d":"39."},"HGSPOT GRUPA d.o.o.","65553879500","Avenija Dubrovnik 46, ZAGREB",{"v":2600.98,"d":"2,600.98"},"EUR","2026/2","4225","Instrumenti i uređaji","FAKULTET PROMETNIH ZNANOSTI"]
[{"v":40,"d":"40."},"PROMET AROMA D.O.O.","66564862998","DRUGA ZAGORSKA 3, ZAGREB",457.65,"EUR","2026/2","3293","Reprezentacija","FAKULTET PROMETNIH ZNANOSTI"]
[{"v":41,"d":"41."},"MOBIA J.D.O.O.","68804458816","AVENIJA DUBROVNIK 16,, Viškovo",{"v":19.9,"d":"19.90"},"EUR","2026/2","3221","Uredski materijal i ostali materijalni rashodi","FAKULTET PROMETNIH ZNANOSTI"]
[{"v":42,"d":"42."},"ZLATNE GORICE OBRT ZA UGO.I USLUGE","GDPR","GDPR",{"v":88,"d":"88.00"},"EUR","2026/2","3293","Reprezentacija","FAKULTET PROMETNIH ZNANOSTI"]
[{"v":43,"d":"43."},"EUROADRIA D.O.O. CATERING KVATRIĆ","84526969754","MAKSIMIRSKA 9,, Zagreb",{"v":1773.45,"d":"1,773.45"},"EUR","2026/2","3293","Reprezentacija","FAKULTET PROMETNIH ZNANOSTI"]
[{"v":44,"d":"44."},"ZAGRIA D.O.O.\"IQ CENTAR\"","85805332078","SLAVONSKA AVENIJA 26/9,, Zagreb",{"v":229.5,"d":"229.50"},"EUR","2026/2","3221","Uredski materijal i ostali materijalni rashodi","FAKULTET PROMETNIH ZNANOSTI"]
[{"v":45,"d":"45."},"PRESEČKI GRUPA D.O.O.","85843181422","FRANA GALOVIĆA 15,, Krapina",{"v":790,"d":"790.00"},"EUR","2026/2","3239","Ostale usluge","FAKULTET PROMETNIH ZNANOSTI"]
[{"v":46,"d":"46."},"Živa voda d.o.o.","86255713939","Karlovačka cesta 92 10020, Zagreb",632.09,"EUR","2026/2","3234","Komunalne usluge","FAKULTET PROMETNIH ZNANOSTI"]
[{"v":47,"d":"47."},"E-PLUS D.O.O.","93923226222","GOSPODARSKA 16 C, Gornji Stupnik",{"v":34.8,"d":"34.80"},"EUR","2026/2","3221","Uredski materijal i ostali materijalni rashodi","FAKULTET PROMETNIH ZNANOSTI"]
[{"v":48,"d":"48."},"VRUTAK D.O.O.","95092888930","VODOVODNA 20 A,, Zagreb",238.73,"EUR","2026/2","3293","Reprezentacija","FAKULTET PROMETNIH ZNANOSTI"]
[{"v":49,"d":"49."},"MCDONALDS","97492131626","RUDEŠKA CESTA 87A, ZAGREB",{"v":10.7,"d":"10.70"},"EUR","2026/2","3293","Reprezentacija","FAKULTET PROMETNIH ZNANOSTI"]
[{"v":50,"d":"50."},"ISTYLE","98828194905","JANKOMIR, 33, Zagreb",{"v":2099.95,"d":"2,099.95"},"EUR","2026/2","4222","Komunikacijska oprema","FAKULTET PROMETNIH ZNANOSTI"]
[{"v":51,"d":"51."},"SLASTIČARNICA VINCEK D.O.O.","99500510088","ZVONIMIROVA 7,, Zagreb",{"v":118.1,"d":"118.10"},"EUR","2026/2","3293","Reprezentacija","FAKULTET PROMETNIH ZNANOSTI"]
[{"v":52,"d":"52."},"UNIVERSITEIT HASSELT T.a.v. dienst Financiën","n.p.","MARTELARENLAAN 42, HASSELT",{"v":745,"d":"745.00"},"EUR","2026/2","3237","Intelektualne i osobne usluge","FAKULTET PROMETNIH ZNANOSTI"]
[{"v":53,"d":"53."},"ZAGORKA TOURS J.D.O.O.","03599696558","LIVADARSKA 16, VRBOVEC",{"v":135,"d":"135.00"},"EUR","2026/2","3239","Ostale usluge","FAKULTET PROMETNIH ZNANOSTI"]
[{"v":54,"d":"54."},"D2C D.O.O.","09674127493","INJATIČKA ULICA 5, ZAGREB",{"v":525,"d":"525.00"},"EUR","2026/2","3227","Službena, radna i zaštitna odjeća i obuća","FAKULTET PROMETNIH ZNANOSTI"]
[{"v":55,"d":"55."},"HEP ELEKTRA d.o.o.","43965974818","Ulica grada Vukovara 37, ZAGREB",26.31,"EUR","2026/2","3223","Energija","FAKULTET PROMETNIH ZNANOSTI"]
[{"v":56,"d":"56."},"FERO-TERM D.O.O.","69638067216","GOSPODARSKA 17,",35.88,"EUR","2026/2","3224","Materijal i dijelovi za tekuće i investicijsko održavanje","FAKULTET PROMETNIH ZNANOSTI"]
[{"v":57,"d":"57."},"MULLER TRGOVINA ZGB","84698789700","NADINSKA 29,, Zagreb",13.36,"EUR","2026/2","3221","Uredski materijal i ostali materijalni rashodi","FAKULTET PROMETNIH ZNANOSTI"]
[{"v":58,"d":"58."},"COPY 7 OBRT ZA USLUGE","GDPR","GDPR",{"v":330,"d":"330.00"},"EUR","2026/2","3239","Ostale usluge","FAKULTET PROMETNIH ZNANOSTI"]
[{"v":59,"d":"59."},"CUTE D.O.O.","92353011206","ILICA 49,, Zagreb",836.55,"EUR","2026/2","3227","Službena, radna i zaštitna odjeća i obuća","FAKULTET PROMETNIH ZNANOSTI"]
[{"v":60,"d":"60."},"ZAGREBAČKA BANKA D.D.","92963223473","TRG BANA JELAČIĆA10, ZAGREB",579.47,"EUR","2026/2","3431","Bankarske usluge i usluge platnog prometa","FAKULTET PROMETNIH ZNANOSTI"]
[{"v":61,"d":"61."},"REFUNDACIJA ZAPOSLENICI","n.p.","n.p.",{"v":1298.22,"d":"1,298.22"},"EUR","2026/2","3295","Pristojbe i naknade","FAKULTET PROMETNIH ZNANOSTI"]
[{"v":62,"d":"62."},"EUROPEAN UNION ROAD FEDERATION","n.p.","Place Stephanie 6/B, Brussels",{"v":1650,"d":"1,650.00"},"EUR","2026/2","3294","Članarine i norme","FAKULTET PROMETNIH ZNANOSTI"]
[{"v":63,"d":"63."},"IMPULS SAVJETOVANJE D.O.O.","30259958677","ULICA GRGE TUŠKANA 37, ZAGREB",{"v":21843.75,"d":"21,843.75"},"EUR","2026/2","3237","Intelektualne i osobne usluge","FAKULTET PROMETNIH ZNANOSTI"]
[{"v":64,"d":"64."},"INSTITUT PROMETA I VEZA","39779737813","KUŠLANOVA 2,, Zagreb",{"v":80,"d":"80.00"},"EUR","2026/2","3234","Komunalne usluge","FAKULTET PROMETNIH ZNANOSTI"]
[{"v":65,"d":"65."},"INSAKO D.O.O.","39851720584","PUŽEVA 11, ZAGREB",{"v":2012.16,"d":"2,012.16"},"EUR","2026/2","3221","Uredski materijal i ostali materijalni rashodi","FAKULTET PROMETNIH ZNANOSTI"]
[{"$f":"ROW(A66)","v":{"v":66,"d":"66."}},"T.M.D.TRAVEL D.O.O.","41349475869","HORVAĆANSKA 27,, Zagreb",{"v":7493,"d":"7,493.00"},"EUR","2026/2","3211","Službena putovanja","FAKULTET PROMETNIH ZNANOSTI"]
[{"v":67,"d":"67."},"DUBROVNIK SUN","60174672203","BOKELJSKA 26,, Dubrovnik",{"v":379.2,"d":"379.20"},"EUR","2026/2","3211","Službena putovanja","FAKULTET PROMETNIH ZNANOSTI"]
[{"v":68,"d":"68."},"STUDENTSKI CENTAR VARAŽDIN","64945507350","JULIJA MARLIĆA BB,, Varaždin",223.03,"EUR","2026/2","3237","Intelektualne i osobne usluge","FAKULTET PROMETNIH ZNANOSTI"]
[{"v":69,"d":"69."},"ISPIS D.O.O.","86023224138","MEĐIMURSKA 21,, Zagreb",77.42,"EUR","2026/2","3239","Ostale usluge","FAKULTET PROMETNIH ZNANOSTI"]
[{"v":70,"d":"70."},"TOTIĆ INSTALACIJE D.O.O.","87155292094","IV. STARA PEŠĆENICA 1, ZAGREB",{"v":11080.6,"d":"11,080.60"},"EUR","2026/2","4223","Oprema za održavanje i zaštitu","FAKULTET PROMETNIH ZNANOSTI"]
[{"v":71,"d":"71."},"ZVONA USLUGE D.O.O.","99421577215","BUSOVAČKA 19, ZAGREB",{"v":1054.33,"d":"1,054.33"},"EUR","2026/2","3293","Reprezentacija","FAKULTET PROMETNIH ZNANOSTI"]
[{"v":72,"d":"72."},"INTERNATIONAL ROAD ASSESSMENT PROGRAMME LILY HILL HOUSE","n.p.","LILY HILL ROAD, RG 12 2SJ, BRACKNELL",501.09,"EUR","2026/2","3237","Intelektualne i osobne usluge","FAKULTET PROMETNIH ZNANOSTI"]
[{"v":73,"d":"73."},"CHIRSTOPHER,OBRT ZA TAKSI PRIJEVOZ","GDPR","GDPR",7.99,"EUR","2026/2","3231","Usluge telefona, interneta, pošte i prijevoza","FAKULTET PROMETNIH ZNANOSTI"]
[{"v":74,"d":"74."},"ANKER","21016032890","BRUNE BUŠIĆA 5,, Zagreb",{"v":1240.59,"d":"1,240.59"},"EUR","2026/2","3224","Materijal i dijelovi za tekuće i investicijsko održavanje","FAKULTET PROMETNIH ZNANOSTI"]
[{"v":75,"d":"75."},"DAMIAN & DYLAN","25273864743","ZELENI TRG 4, ZAGREB",11.95,"EUR","2026/2","3231","Usluge telefona, interneta, pošte i prijevoza","FAKULTET PROMETNIH ZNANOSTI"]
[{"v":76,"d":"76."},"PERFECT RIDE D.O.O.","49961094586","ULICA IVANA ŠIBLA 17, ZAGREB",7.94,"EUR","2026/2","3231","Usluge telefona, interneta, pošte i prijevoza","FAKULTET PROMETNIH ZNANOSTI"]
[{"v":77,"d":"77."},"DARMAR DRIVE J.D.O.O.","60407911238","PERUANSKA ULICA 4, ZAGREB",8.96,"EUR","2026/2","3231","Usluge telefona, interneta, pošte i prijevoza","FAKULTET PROMETNIH ZNANOSTI"]
[{"v":78,"d":"78."},"GARDIEN D.O.O. RESTORAN TAJER","61449176051","ZELENGAJ 18, ZAGREB",283.55,"EUR","2026/2","3293","Reprezentacija","FAKULTET PROMETNIH ZNANOSTI"]
[{"v":79,"d":"79."},"HEP OPSKRBA D.O.O. DISTR.PODR.ELEKTRA","63073332379","ULICA GRADA VUKOVARA 37,, Zagreb",{"v":2280.13,"d":"2,280.13"},"EUR","2026/2","3223","Energija","FAKULTET PROMETNIH ZNANOSTI"]
[{"v":80,"d":"80."},"HGSPOT GRUPA d.o.o.","65553879500","Avenija Dubrovnik 46, ZAGREB",{"v":340.8,"d":"340.80"},"EUR","2026/2","3221","Uredski materijal i ostali materijalni rashodi","FAKULTET PROMETNIH ZNANOSTI"]
[{"v":81,"d":"81."},"RESTORAN MANDIĆ","69043767930","JAMADOLSKA 2,, Karlovac",{"v":699.4,"d":"699.40"},"EUR","2026/2","3293","Reprezentacija","FAKULTET PROMETNIH ZNANOSTI"]
[{"v":82,"d":"82."},"LG PRIJEVOZ,OBRT ZA ORIJEVOZ I USLUGE","GDPR","GDPR",{"v":4.4,"d":"4.40"},"EUR","2026/2","3231","Usluge telefona, interneta, pošte i prijevoza","FAKULTET PROMETNIH ZNANOSTI"]
[{"v":83,"d":"83."},"QUBIK GLOBAL J.D.O.O.","76070292718","SAVSKA CESTA 41, ZAGREB",4.95,"EUR","2026/2","3231","Usluge telefona, interneta, pošte i prijevoza","FAKULTET PROMETNIH ZNANOSTI"]
[{"v":84,"d":"84."},"EVENT DRIVE J.D.O.O.","81688804491","SAVSKA CESTA 41, ZAGREB",4.25,"EUR","2026/2","3231","Usluge telefona, interneta, pošte i prijevoza","FAKULTET PROMETNIH ZNANOSTI"]
[{"v":85,"d":"85."},"NACIONALNA I SVEUČILIŠNA KNJIŽNICA","84838770814","HRVATSKE BRATSKE ZAJEDNICE 4,, Zagreb",{"v":92.9,"d":"92.90"},"EUR","2026/2","3235","Zakupnine i najamnine","FAKULTET PROMETNIH ZNANOSTI"]
[{"v":86,"d":"86."},"HRVATSKA POŠTA D.D.","87311810356","POŠTANSKA ULICA 9, VELIKA GORICA",298.38,"EUR","2026/2","3231","Usluge telefona, interneta, pošte i prijevoza","FAKULTET PROMETNIH ZNANOSTI"]
[{"v":87,"d":"87."},"DELTA AIR","88371517489","NOVSKA 26,, Zagreb",{"v":5335.72,"d":"5,335.72"},"EUR","2026/2","3232","Usluge tekućeg i investicijskog održavanja","FAKULTET PROMETNIH ZNANOSTI"]
[{"v":88,"d":"88."},null,"GDPR","GDPR",{"$f":"25812.2+3648.04","v":{"v":29460.24,"d":"29,460.24"}},"EUR","2026/2","3237","Intelektualne i osobne usluge","FAKULTET PROMETNIH ZNANOSTI"]
[{"v":89,"d":"89."},"OPENAL, LLC","n.p.","548 MARKET STREET PMB 97273, SAN FRANCISCO",885.86,"EUR","2026/2","3235","Zakupnine i najamnine","FAKULTET PROMETNIH ZNANOSTI"]
[{"v":90,"d":"90."},"KINEZIOLOŠKI FAKULTET SVEUČILIŠTA U ZAGREBU","25329931628","Horvaćanski zavoj 15, ZAGREB",{"v":420,"d":"420.00"},"EUR","2026/2","3235","Zakupnine i najamnine","FAKULTET PROMETNIH ZNANOSTI"]
[{"v":91,"d":"91."},"INA INDUSTRIJA NAFTE D.D.","27759560625","AVENIJA V.HOLJEVCA 10,, Zagreb",{"v":8207.09,"d":"8,207.09"},"EUR","2026/2","3223","Energija","FAKULTET PROMETNIH ZNANOSTI"]
[{"v":92,"d":"92."},"INFOMAR D.O.O. ZA INFORMATIČKI INŽENJERING I POSLOVNE USLUGE","47828243632","II RAVNICE 37,, Zagreb",{"v":1924.48,"d":"1,924.48"},"EUR","2026/2","3238","Računalne usluge","FAKULTET PROMETNIH ZNANOSTI"]
[{"v":93,"d":"93."},"Zelen dvor","55172671510","Vlaška 95 Zagreb, Zagreb",335.85,"EUR","2026/2","3293","Reprezentacija","FAKULTET PROMETNIH ZNANOSTI"]
[{"v":94,"d":"94."},"BAUHAUS","71642207963","ŽITNJAK BB, VELIMIRA ŠKORPIKA 27, Zagreb",21.47,"EUR","2026/2","3224","Materijal i dijelovi za tekuće i investicijsko održavanje","FAKULTET PROMETNIH ZNANOSTI"]
[{"v":95,"d":"95."},"MEĐUNARODNA ZRAČNA LUKA ZAGREB","79446233150","ULICA RUDOLFA FIZIRA,, Velika Gorica",596.75,"EUR","2026/2","3235","Zakupnine i najamnine","FAKULTET PROMETNIH ZNANOSTI"]
[{"v":96,"d":"96."},null,"n.p.","n.p.",{"$f":"114966.34+745.8","v":{"v":115712.14,"d":"115,712.14"}},"EUR","2026/2","3111","Plaće za redovan rad","FAKULTET PROMETNIH ZNANOSTI"]
[{"v":97,"d":"97."},null,"n.p.","n.p.",{"v":745.8,"d":"745.80"},"EUR","2026/2","3131","Doprinosi za mirovinsko osiguranje za staž s povećanim trajanjem","FAKULTET PROMETNIH ZNANOSTI"]
[{"v":98,"d":"98."},null,"n.p.","n.p.",{"$f":"18253.19+3599.95","v":{"v":21853.14,"d":"21,853.14"}},"EUR","2026/2","3132","Doprinosi za obvezno zdravstveno osiguranje","FAKULTET PROMETNIH ZNANOSTI"]
[{"v":99,"d":"99."},null,"n.p.","n.p.",{"$f":"851.71+673.49-38.49","v":{"v":1486.71,"d":"1,486.71"}},"EUR","2026/2","3212","Naknade za prijevoz, za rad na terenu i odvojeni život","FAKULTET PROMETNIH ZNANOSTI"]
[{"v":100,"d":"100."},null,"n.p.","n.p.",{"v":3153.14,"d":"3,153.14"},"EUR","2026/2","3111","Plaće za redovan rad","FAKULTET PROMETNIH ZNANOSTI"]
[{"v":101,"d":"101."},null,"n.p.","n.p.",{"$f":"38.49+28837.32+2062.81+463.5","v":{"v":31402.120000000003,"d":"31,402.12"}},"EUR","2026/2","3121","Ostali rashodi za zaposlene","FAKULTET PROMETNIH ZNANOSTI"]
[{"v":102,"d":"102."},null,"n.p.","n.p.",526.62,"EUR","2026/2","3132","Doprinosi za obvezno zdravstveno osiguranje","FAKULTET PROMETNIH ZNANOSTI"]
[{"v":103,"d":"103."},"MEĐIMURJE - PLIN D.O.O.","29035933600","OBRTNIČKA 4, ČAKOVEC",{"v":1520.52,"d":"1,520.52"},"EUR","2026/2","3223","Energija","FAKULTET PROMETNIH ZNANOSTI"]
[{"v":104,"d":"104."},"CVJEČARSKI OBRT VERA","GDPR","GDPR",{"v":400,"d":"400.00"},"EUR","2026/2","3299","Ostali nespomenuti rashodi poslovanja","FAKULTET PROMETNIH ZNANOSTI"]
[{"v":105,"d":"105."},"STUDENTSKI CENTAR KARLOVAC","58335400167","F.K.FRANKOPANA 5, KARLOVAC",216.74,"EUR","2026/2","3237","Intelektualne i osobne usluge","FAKULTET PROMETNIH ZNANOSTI"]
[{"v":106,"d":"106."},"STUDENTSKI CENTAR PULA","63288148995","ULICA SV.MIHOVILA 3,, Pula",350.47,"EUR","2026/2","3237","Intelektualne i osobne usluge","FAKULTET PROMETNIH ZNANOSTI"]
[{"v":107,"d":"107."},"UDRUŽENJE DRUŠTVO ZA ROBOTIKU U BiH","n.p.","Ulica V korpusa, Bihać",{"v":250,"d":"250.00"},"EUR","2026/2","3213","Stručno usavršavanje zaposlenika","FAKULTET PROMETNIH ZNANOSTI"]
[{"v":108,"d":"108."},"AERO STANDARD D.O.O.","62629410839","Franje Baruna Trenka 86, ZADAR",{"v":17650.79,"d":"17,650.79"},"EUR","2026/2","3232","Usluge tekućeg i investicijskog održavanja","FAKULTET PROMETNIH ZNANOSTI"]
[{"v":109,"d":"109."},"ZAGREBAČKI ELEKTRIČNI TRAMVAJ D.O.O.","82031999604","OZALJSKA 105,, Zagreb",269.43,"EUR","2026/2","3212","Naknade za prijevoz, za rad na terenu i odvojeni život","FAKULTET PROMETNIH ZNANOSTI"]
[{"v":110,"d":"110."},"ADAM STANČIĆ","GDPR","GDPR",{"v":68.8,"d":"68.80"},"EUR","2026/2","3237","Intelektualne i osobne usluge","FAKULTET PROMETNIH ZNANOSTI"]
[{"v":111,"d":"111."},"ANA DLESK","GDPR","GDPR",{"v":344,"d":"344.00"},"EUR","2026/2","3237","Intelektualne i osobne usluge","FAKULTET PROMETNIH ZNANOSTI"]
[{"v":112,"d":"112."},"ANDREJ IGNJATIĆ","GDPR","GDPR",{"v":137.6,"d":"137.60"},"EUR","2026/2","3237","Intelektualne i osobne usluge","FAKULTET PROMETNIH ZNANOSTI"]
[{"v":113,"d":"113."},"ANĐELKO PLEŠIĆ","GDPR","GDPR",671.88,"EUR","2026/2","3237","Intelektualne i osobne usluge","FAKULTET PROMETNIH ZNANOSTI"]
[{"v":114,"d":"114."},"BABOJELIĆ KARLO","GDPR","GDPR",{"v":6500,"d":"6,500.00"},"EUR","2026/2","3237","Intelektualne i osobne usluge","FAKULTET PROMETNIH ZNANOSTI"]
[{"v":115,"d":"115."},"BARIĆ DANIJELA","GDPR","GDPR",{"v":3420,"d":"3,420.00"},"EUR","2026/2","3237","Intelektualne i osobne usluge","FAKULTET PROMETNIH ZNANOSTI"]
[{"v":116,"d":"116."},"CRNKO PREDRAG","GDPR","GDPR",483.75,"EUR","2026/2","3237","Intelektualne i osobne usluge","FAKULTET PROMETNIH ZNANOSTI"]
[{"v":117,"d":"117."},"DARKO LEŠKOVIĆ","GDPR","GDPR",638.55,"EUR","2026/2","3237","Intelektualne i osobne usluge","FAKULTET PROMETNIH ZNANOSTI"]
[{"v":118,"d":"118."},"DARKO VIROVAC","GDPR","GDPR",148.35,"EUR","2026/2","3237","Intelektualne i osobne usluge","FAKULTET PROMETNIH ZNANOSTI"]
[{"v":119,"d":"119."},"DRAGAN GLAVAŠ","GDPR","GDPR",242.95,"EUR","2026/2","3237","Intelektualne i osobne usluge","FAKULTET PROMETNIH ZNANOSTI"]
[{"v":120,"d":"120."},"DRAGOSLAV DRAGOJLOVIĆ","GDPR","GDPR",142.98,"EUR","2026/2","3237","Intelektualne i osobne usluge","FAKULTET PROMETNIH ZNANOSTI"]
[{"v":121,"d":"121."},"DUBRAVKO TOMAŠIĆ","GDPR","GDPR",{"v":98.9,"d":"98.90"},"EUR","2026/2","3237","Intelektualne i osobne usluge","FAKULTET PROMETNIH ZNANOSTI"]
[{"v":122,"d":"122."},"DUKIĆ TIN","GDPR","GDPR",{"v":1827.5,"d":"1,827.50"},"EUR","2026/2","3237","Intelektualne i osobne usluge","FAKULTET PROMETNIH ZNANOSTI"]
[{"v":123,"d":"123."},"DUNJA PLAČKO VRŠNAK","GDPR","GDPR",125.78,"EUR","2026/2","3237","Intelektualne i osobne usluge","FAKULTET PROMETNIH ZNANOSTI"]
[{"v":124,"d":"124."},"FEDECRAIL","n.p.","DE STREEP 19, DAMME",{"v":425,"d":"425.00"},"EUR","2026/2","3213","Stručno usavršavanje zaposlenika","FAKULTET PROMETNIH ZNANOSTI"]
[{"v":125,"d":"125."},"GORAN VOJKOVIĆ","GDPR","GDPR",532.75,"EUR","2026/2","3237","Intelektualne i osobne usluge","FAKULTET PROMETNIH ZNANOSTI"]
[{"v":126,"d":"126."},"HRVOJE IVKOVIĆ","GDPR","GDPR",522.45,"EUR","2026/2","3237","Intelektualne i osobne usluge","FAKULTET PROMETNIH ZNANOSTI"]
[{"v":127,"d":"127."},"IVANA PROTUĐER","GDPR","GDPR",{"v":447.2,"d":"447.20"},"EUR","2026/2","3237","Intelektualne i osobne usluge","FAKULTET PROMETNIH ZNANOSTI"]
[{"v":128,"d":"128."},"IVICA PIVAR","GDPR","GDPR",{"v":533.2,"d":"533.20"},"EUR","2026/2","3237","Intelektualne i osobne usluge","FAKULTET PROMETNIH ZNANOSTI"]
[{"v":129,"d":"129."},"KUDELJAN NIKOLA","GDPR","GDPR",{"v":2354.17,"d":"2,354.17"},"EUR","2026/2","3237","Intelektualne i osobne usluge","FAKULTET PROMETNIH ZNANOSTI"]
[{"$f":"ROW(A130)","v":{"v":130,"d":"130."}},"MARIO BIRKIĆ","GDPR","GDPR",174.15,"EUR","2026/2","3237","Intelektualne i osobne usluge","FAKULTET PROMETNIH ZNANOSTI"]
[{"v":131,"d":"131."},"MARKO ORA","GDPR","GDPR",{"v":51.6,"d":"51.60"},"EUR","2026/2","3237","Intelektualne i osobne usluge","FAKULTET PROMETNIH ZNANOSTI"]
[{"v":132,"d":"132."},"MIRJANA BILIĆ","GDPR","GDPR",{"v":1161,"d":"1,161.00"},"EUR","2026/2","3237","Intelektualne i osobne usluge","FAKULTET PROMETNIH ZNANOSTI"]
[{"v":133,"d":"133."},"NEVENKA MESAROV","GDPR","GDPR",102.13,"EUR","2026/2","3237","Intelektualne i osobne usluge","FAKULTET PROMETNIH ZNANOSTI"]
[{"v":134,"d":"134."},"Novačko Luka","GDPR","GDPR",{"v":5500,"d":"5,500.00"},"EUR","2026/2","3237","Intelektualne i osobne usluge","FAKULTET PROMETNIH ZNANOSTI"]
[{"v":135,"d":"135."},"ROMAN ROMANOVIĆ","GDPR","GDPR",261.23,"EUR","2026/2","3237","Intelektualne i osobne usluge","FAKULTET PROMETNIH ZNANOSTI"]
[{"v":136,"d":"136."},"SINIŠA KOVAČIĆ","GDPR","GDPR",{"v":98.9,"d":"98.90"},"EUR","2026/2","3237","Intelektualne i osobne usluge","FAKULTET PROMETNIH ZNANOSTI"]
[{"v":137,"d":"137."},"TOMISLAV PEREGLIN","GDPR","GDPR",125.78,"EUR","2026/2","3237","Intelektualne i osobne usluge","FAKULTET PROMETNIH ZNANOSTI"]
[{"v":138,"d":"138."},"ZORAN JAKŠIĆ","GDPR","GDPR",174.15,"EUR","2026/2","3237","Intelektualne i osobne usluge","FAKULTET PROMETNIH ZNANOSTI"]
[{"v":139,"d":"139."},"ŽELJKO OREŠKI","GDPR","GDPR",639.63,"EUR","2026/2","3237","Intelektualne i osobne usluge","FAKULTET PROMETNIH ZNANOSTI"]
[{"v":140,"d":"140."},"GRADSKO STAMBENO KOM.GOSP. GSKG","03744272526","SAVSKA CESTA 1,, Zagreb",628.65,"EUR","2026/2","3234","Komunalne usluge","FAKULTET PROMETNIH ZNANOSTI"]
[{"v":141,"d":"141."},"SGM INFORMATIKA D.O.O.","09168707993","GRGE NOVAKA 22A, Split",{"v":7560,"d":"7,560.00"},"EUR","2026/2","4221","Uredska oprema i namještaj","FAKULTET PROMETNIH ZNANOSTI"]
[{"v":142,"d":"142."},"ALFA SECURITY & DEMINING D.O.O.","15417598684","Grdanjci 1 /1 Grdanjci, Grdanjci",124.43,"EUR","2026/2","3239","Ostale usluge","FAKULTET PROMETNIH ZNANOSTI"]
[{"v":143,"d":"143."},"KONICA MINOLTA POSLOVNA RJEŠENJA D.O.O.","31697259786","HORVATOVA 82,, Zagreb",{"v":1293.88,"d":"1,293.88"},"EUR","2026/2","3235","Zakupnine i najamnine","FAKULTET PROMETNIH ZNANOSTI"]
[{"v":144,"d":"144."},"Ustanova za zdravstvenu skrb OptimaMed","40946431457","Gotalovečka 2 ZAGREB, ZAGREB",{"v":60,"d":"60.00"},"EUR","2026/2","3236","Zdravstvene i veterinarske usluge","FAKULTET PROMETNIH ZNANOSTI"]
[{"v":145,"d":"145."},"HAVAS - ZEMALJSKE USLUGE D.O.O.","52460524732","ULICA RUDOLFA FIZIRA 1,, Velika Gorica",{"v":1120,"d":"1,120.00"},"EUR","2026/2","3235","Zakupnine i najamnine","FAKULTET PROMETNIH ZNANOSTI"]
[{"v":146,"d":"146."},"NODEFUSION D.O.O.","60378406301","KRČMARIĆI 22, Zagreb - Buzin",995.43,"EUR","2026/2","3238","Računalne usluge","FAKULTET PROMETNIH ZNANOSTI"]
[{"v":147,"d":"147."},"SINONIM D.O.O.","60695956664","PRINCA EUGENA SAVOJSKOG 51,, Osijek",{"v":2508.75,"d":"2,508.75"},"EUR","2026/2","3237","Intelektualne i osobne usluge","FAKULTET PROMETNIH ZNANOSTI"]
[{"v":148,"d":"148."},"LEXPERA D.O.O.","79506290597","ZAGREB,, TUŠKANOVA 37",121.88,"EUR","2026/2","3221","Uredski materijal i ostali materijalni rashodi","FAKULTET PROMETNIH ZNANOSTI"]
[{"v":149,"d":"149."},"REZO ZVONIMIR","82279099452","KNEZA DOMAGOJA 17,, Dubrovnik",{"v":524.6,"d":"524.60"},"EUR","2026/2","3237","Intelektualne i osobne usluge","FAKULTET PROMETNIH ZNANOSTI"]
[{"v":150,"d":"150."},"VODOVOD ZADAR","89406825003","ŠPIRE BRUSINE 17,, Zadar",12.24,"EUR","2026/2","3234","Komunalne usluge","FAKULTET PROMETNIH ZNANOSTI"]
[{"v":151,"d":"151."},"AGENCIJA ZA ZAPOŠLJAVANJE FRENDLY HUMAN","n.p.","BULEVAR MIHAILA PUPINA 10E, NOVI BEOGRAD",{"v":500,"d":"500.00"},"EUR","2026/2","3233","Usluge promidžbe i informiranja","FAKULTET PROMETNIH ZNANOSTI"]
[{"v":152,"d":"152."},"ZRAČNA LUKA RIJEKA","37940245720","HAMEC 1,, Omišalj",{"v":2593.18,"d":"2,593.18"},"EUR","2026/2","3235","Zakupnine i najamnine","FAKULTET PROMETNIH ZNANOSTI"]
[{"v":153,"d":"153."},"OBZOR PUTOVANJA","45547576946","TESLINA 5,, Zagreb",{"v":3430,"d":"3,430.00"},"EUR","2026/2","3211","Službena putovanja","FAKULTET PROMETNIH ZNANOSTI"]
[{"v":154,"d":"154."},"VALMAR D.O.O.","n.p.","LAVA 7A, CELJE",{"v":6969.69,"d":"6,969.69"},"EUR","2026/2","3224","Materijal i dijelovi za tekuće i investicijsko održavanje","FAKULTET PROMETNIH ZNANOSTI"]
[{"v":155,"d":"155."},"WONDERFUL DRIVE J.D.O.O.","63130691521","BOLNIČKA CESTA 34/F, ZAGREB-SUSEDGRAD",{"v":5.8,"d":"5.80"},"EUR","2026/2","3231","Usluge telefona, interneta, pošte i prijevoza","FAKULTET PROMETNIH ZNANOSTI"]
[{"v":156,"d":"156."},"HRAVATSKI TELEKOM d.d.","81793146560","Radnička cesta 21, ZAGREB",557.15,"EUR","2026/2","3231","Usluge telefona, interneta, pošte i prijevoza","FAKULTET PROMETNIH ZNANOSTI"]
[{"v":157,"d":"157."},"JEPPESEN","n.p.","FRANKFURTER STR.233,, Neu-Isenburg",{"v":482,"d":"482.00"},"EUR","2026/2","3221","Uredski materijal i ostali materijalni rashodi","FAKULTET PROMETNIH ZNANOSTI"]
[{"v":158,"d":"158."},"POLIS CITIES AND REGIONS FOR TRANSPORT INNOVATION","n.p.","RUE DU TRONE 98, IXELLES",{"v":3895.73,"d":"3,895.73"},"EUR","2026/2","3294","Članarine i norme","FAKULTET PROMETNIH ZNANOSTI"]
[{"v":159,"d":"159."},"Z-EL D.O.O.","11374156664","INDUSTRIJSKA CESTA 28,, Zagreb",{"v":190.4,"d":"190.40"},"EUR","2026/2","3221","Uredski materijal i ostali materijalni rashodi","FAKULTET PROMETNIH ZNANOSTI"]
[{"v":160,"d":"160."},"LIMES PLUS D.O.O.","57560191883","HEINZELOVA 60,, Zagreb",31.53,"EUR","2026/2","3221","Uredski materijal i ostali materijalni rashodi","FAKULTET PROMETNIH ZNANOSTI"]
[{"v":161,"d":"161."},"GRAD ZAGREB - GRADSKI URED ZA MJESNU SAMOUPRAVU, PROMET, KOMUNALNE POSLOVE, CIVILNU ZAŠTITU I SIGURNOST","61817894937","ULICA KNEZA BRANIMIRA 71 B, Zagreb",409.11,"EUR","2026/2","3234","Komunalne usluge","FAKULTET PROMETNIH ZNANOSTI"]
[{"v":162,"d":"162."},"EXELLISO D.O.O.","94275387625","SVETICE 24, ZAGREB",{"v":987.5,"d":"987.50"},"EUR","2026/2","3221","Uredski materijal i ostali materijalni rashodi","FAKULTET PROMETNIH ZNANOSTI"]
[{"v":163,"d":"163."},"HRVATSKO DRUŠTVO ZA CESTE I ŽELJEZNICE VIA VITA","96723292226","VONČININA 3, ZAGREB,, Zagreb",663.61,"EUR","2026/2","3294","Članarine i norme","FAKULTET PROMETNIH ZNANOSTI"]
[{"v":164,"d":"164."},"KONOBA \"DIDA\"","57115090734","PETROVA 176,, Zagreb",{"v":225.5,"d":"225.50"},"EUR","2026/2","3293","Reprezentacija","FAKULTET PROMETNIH ZNANOSTI"]
[{"v":165,"d":"165."},"NARODNE NOVINE D.D.","64546066176","SAVSKI GAJ XIII. PUT 6,, Zagreb",{"v":1374.75,"d":"1,374.75"},"EUR","2026/2","3233","Usluge promidžbe i informiranja","FAKULTET PROMETNIH ZNANOSTI"]
[{"v":166,"d":"166."},"USLUŽNI OBRT PIPIN VL. JOSO JOZIĆ","GDPR","GDPR",{"v":525,"d":"525.00"},"EUR","2026/2","3232","Usluge tekućeg i investicijskog održavanja","FAKULTET PROMETNIH ZNANOSTI"]
[{"v":167,"d":"167."},"KAUFLAND HRVATSKA K.D.","47432874968","DONJE SVETICE 14,, Zagreb",{"v":46.6,"d":"46.60"},"EUR","2026/2","3293","Reprezentacija","FAKULTET PROMETNIH ZNANOSTI"]
[{"v":168,"d":"168."},"PRIMAT LOGISTIKA D.O.O.","64645054565","ZASTAVNICE 11,, Hrvatski Leskovac",{"v":450,"d":"450.00"},"EUR","2026/2","4221","Uredska oprema i namještaj","FAKULTET PROMETNIH ZNANOSTI"]
[{"v":169,"d":"169."},"BABIĆ & BRBOROVIĆ","GDPR","GDPR",{"v":2312.5,"d":"2,312.50"},"EUR","2026/2","3237","Intelektualne i osobne usluge","FAKULTET PROMETNIH ZNANOSTI"]
[{"v":170,"d":"170."},"BENT EXCELLENT D.O.O.","91040737993","VELIMIRA ŠKORPIKA 14B,, Zagreb-Susedgrad",186.88,"EUR","2026/2","3221","Uredski materijal i ostali materijalni rashodi","FAKULTET PROMETNIH ZNANOSTI"]
[{"v":171,"d":"171."},"CROATIA OSIGURANJE D.D.","26187994862","MIRAMARSKA 22,, Zagreb",{"v":2467.06,"d":"2,467.06"},"EUR","2026/2","3292","Premije osiguranja","FAKULTET PROMETNIH ZNANOSTI"]
[{"v":172,"d":"172."},"VODOOPSKRBA I ODVODNJA D.O.O. Odjel pravnih i kadrovskih poslova","83416546499","FOLNEGOVIĆEVA 1,, Zagreb",210.15,"EUR","2026/2","3234","Komunalne usluge","FAKULTET PROMETNIH ZNANOSTI"]
[{"v":173,"d":"173."},"REFUNDACIJA ZAPOSLENICI","n.p.","n.p.",{"v":100,"d":"100.00"},"EUR","2026/2","3299","Ostali nespomenuti rashodi poslovanja","FAKULTET PROMETNIH ZNANOSTI"]
[{"v":174,"d":"174."},"GODADDY","EU826010755","NORTH HAYDE NROAD SUITE 219,, SCOLTSDALE",43.98,"EUR","2026/2","3221","Uredski materijal i ostali materijalni rashodi","FAKULTET PROMETNIH ZNANOSTI"]
[{"v":175,"d":"175."},"VERIFONE PAYMENTS BV DBA 2CHECHOUT","n.p.","SINGEL 250, AMSTERDAM",59.96,"EUR","2026/2","3235","Zakupnine i najamnine","FAKULTET PROMETNIH ZNANOSTI"]
[{"v":176,"d":"176."},"OFFERTISIMA D.O.O.","00643859701","AVENIJA DUBRAVA 82,, Zagreb",{"v":29.2,"d":"29.20"},"EUR","2026/2","3224","Materijal i dijelovi za tekuće i investicijsko održavanje","FAKULTET PROMETNIH ZNANOSTI"]
[{"v":177,"d":"177."},"RONIS D.O.O.","21720748086","JOSIPA KOZARCA 1/A,, Cakovec",{"v":340.9,"d":"340.90"},"EUR","2026/2","3221","Uredski materijal i ostali materijalni rashodi","FAKULTET PROMETNIH ZNANOSTI"]
[{"v":178,"d":"178."},"BIR PIVNICA &PIVOVARA INKORA S D.O.O.","70612365410","HARAMBAŠIĆEVA 31, ZAGREB",{"v":41.7,"d":"41.70"},"EUR","2026/2","3293","Reprezentacija","FAKULTET PROMETNIH ZNANOSTI"]
[{"v":179,"d":"179."},"RAGA BIB D.O.O. POLJOPRIVREDNA APOTEKA","82347978901","KOBILJAČKA 137, SESVETSKI KRALJEVEC",{"v":56.8,"d":"56.80"},"EUR","2026/2","3224","Materijal i dijelovi za tekuće i investicijsko održavanje","FAKULTET PROMETNIH ZNANOSTI"]
[{"v":180,"d":"180."},"HETZNER ONLINE AG","n.p.","Germany",75.73,"EUR","2026/2","3221","Uredski materijal i ostali materijalni rashodi","FAKULTET PROMETNIH ZNANOSTI"]
[{"v":181,"d":"181."},"REFUNDACIJA ZAPOSLENICI","n.p.","n.p.",{"v":20,"d":"20.00"},"EUR","2026/2","3294","Članarine i norme","FAKULTET PROMETNIH ZNANOSTI"]
[{"v":182,"d":"182."},"ANA PAVELIĆ TREMAC","GDPR","GDPR",126.91,"EUR","2026/2","3237","Intelektualne i osobne usluge","FAKULTET PROMETNIH ZNANOSTI"]
[{"v":183,"d":"183."},"ANTE BARUN","GDPR","GDPR",131.86,"EUR","2026/2","3237","Intelektualne i osobne usluge","FAKULTET PROMETNIH ZNANOSTI"]
[{"v":184,"d":"184."},"AURORA VALINČIĆ","GDPR","GDPR",126.91,"EUR","2026/2","3237","Intelektualne i osobne usluge","FAKULTET PROMETNIH ZNANOSTI"]
[{"v":185,"d":"185."},"BOSILJKA DOLEŽAL","GDPR","GDPR",131.86,"EUR","2026/2","3237","Intelektualne i osobne usluge","FAKULTET PROMETNIH ZNANOSTI"]
[{"v":186,"d":"186."},"BOŽE RADOŠ","GDPR","GDPR",126.91,"EUR","2026/2","3237","Intelektualne i osobne usluge","FAKULTET PROMETNIH ZNANOSTI"]
[{"v":187,"d":"187."},"DAMIR HAS","GDPR","GDPR",126.91,"EUR","2026/2","3237","Intelektualne i osobne usluge","FAKULTET PROMETNIH ZNANOSTI"]
[{"v":188,"d":"188."},"DARIJO ŠEGO","GDPR","GDPR",126.91,"EUR","2026/2","3237","Intelektualne i osobne usluge","FAKULTET PROMETNIH ZNANOSTI"]
[{"v":189,"d":"189."},"DIJANA JOLIĆ","GDPR","GDPR",126.91,"EUR","2026/2","3237","Intelektualne i osobne usluge","FAKULTET PROMETNIH ZNANOSTI"]
[{"v":190,"d":"190."},"IEEE PRODUCTS & SERVIC","GDPR","GDPR",164.21,"EUR","2026/2","3294","Članarine i norme","FAKULTET PROMETNIH ZNANOSTI"]
[{"v":191,"d":"191."},"INES DODIG","GDPR","GDPR",126.91,"EUR","2026/2","3237","Intelektualne i osobne usluge","FAKULTET PROMETNIH ZNANOSTI"]
[{"v":192,"d":"192."},"JURAJ KOSTELAC","GDPR","GDPR",130.16,"EUR","2026/2","3237","Intelektualne i osobne usluge","FAKULTET PROMETNIH ZNANOSTI"]
[{"v":193,"d":"193."},"KREŠIMIR STIPANOVIĆ","GDPR","GDPR",131.86,"EUR","2026/2","3237","Intelektualne i osobne usluge","FAKULTET PROMETNIH ZNANOSTI"]
[{"$f":"ROW(A194)","v":{"v":194,"d":"194."}},"LUKA DEDIĆ","GDPR","GDPR",{"v":593.4,"d":"593.40"},"EUR","2026/2","3237","Intelektualne i osobne usluge","FAKULTET PROMETNIH ZNANOSTI"]
[{"v":195,"d":"195."},"MARIJA BOŠNJAK","GDPR","GDPR",129.33,"EUR","2026/2","3237","Intelektualne i osobne usluge","FAKULTET PROMETNIH ZNANOSTI"]
[{"v":196,"d":"196."},"MARIJA ŽEPINA","GDPR","GDPR",126.91,"EUR","2026/2","3237","Intelektualne i osobne usluge","FAKULTET PROMETNIH ZNANOSTI"]
[{"v":197,"d":"197."},"MIROSLAV VUJAKLIJA","GDPR","GDPR",126.91,"EUR","2026/2","3237","Intelektualne i osobne usluge","FAKULTET PROMETNIH ZNANOSTI"]
[{"v":198,"d":"198."},"NENAD TUŠKANAC","GDPR","GDPR",129.51,"EUR","2026/2","3237","Intelektualne i osobne usluge","FAKULTET PROMETNIH ZNANOSTI"]
[{"v":199,"d":"199."},"NEVENKA PERICA","GDPR","GDPR",131.86,"EUR","2026/2","3237","Intelektualne i osobne usluge","FAKULTET PROMETNIH ZNANOSTI"]
[{"v":200,"d":"200."},"PETAR JOLIĆ","GDPR","GDPR",131.86,"EUR","2026/2","3237","Intelektualne i osobne usluge","FAKULTET PROMETNIH ZNANOSTI"]
[{"v":201,"d":"201."},"PETAR MOSTARAC","GDPR","GDPR",131.86,"EUR","2026/2","3237","Intelektualne i osobne usluge","FAKULTET PROMETNIH ZNANOSTI"]
[{"v":202,"d":"202."},"PT. INOVASI INFORMATIK SINERGI","n.p.","30 W. 26th Street, Sixth Floor, NEW YORK",516.57,"EUR","2026/2","3238","Računalne usluge","FAKULTET PROMETNIH ZNANOSTI"]
[{"v":203,"d":"203."},"SANJA ŽIVKO","GDPR","GDPR",131.86,"EUR","2026/2","3237","Intelektualne i osobne usluge","FAKULTET PROMETNIH ZNANOSTI"]
[{"v":204,"d":"204."},"SELMA MLIVIĆ SRŠAN","GDPR","GDPR",126.91,"EUR","2026/2","3237","Intelektualne i osobne usluge","FAKULTET PROMETNIH ZNANOSTI"]
[{"v":205,"d":"205."},"SUZANA ĆURIĆ","GDPR","GDPR",131.86,"EUR","2026/2","3237","Intelektualne i osobne usluge","FAKULTET PROMETNIH ZNANOSTI"]
[{"v":206,"d":"206."},"VERA PRETEGIANI","GDPR","GDPR",126.91,"EUR","2026/2","3237","Intelektualne i osobne usluge","FAKULTET PROMETNIH ZNANOSTI"]
[{"v":207,"d":"207."},"ZLATKO GABRIĆ","GDPR","GDPR",131.86,"EUR","2026/2","3237","Intelektualne i osobne usluge","FAKULTET PROMETNIH ZNANOSTI"]
[{"v":208,"d":"208."},"ŽELJKA DEMŠE","GDPR","GDPR",126.91,"EUR","2026/2","3237","Intelektualne i osobne usluge","FAKULTET PROMETNIH ZNANOSTI"]
[{"v":209,"d":"209."},"ŽELJKO ŠIMIĆ","GDPR","GDPR",126.91,"EUR","2026/2","3237","Intelektualne i osobne usluge","FAKULTET PROMETNIH ZNANOSTI"]
[{"v":210,"d":"210."},"Z-EL D.O.O.","11374156664","INDUSTRIJSKA CESTA 28,, Zagreb",{"v":1999.8,"d":"1,999.80"},"EUR","2026/2","4222","Komunikacijska oprema","FAKULTET PROMETNIH ZNANOSTI"]
[{"v":211,"d":"211."},"AUTOTRANS d.d.","19819724166","ŠETALIŠTE 20.TRAVNJA 18, CRES",{"v":1750,"d":"1,750.00"},"EUR","2026/2","3239","Ostale usluge","FAKULTET PROMETNIH ZNANOSTI"]
[{"v":212,"d":"212."},"EUROHERC OSIGURANJE D.D.","22694857747","ULICA GRADA VUKOVARA 282,, Zagreb",452.31,"EUR","2026/2","3292","Premije osiguranja","FAKULTET PROMETNIH ZNANOSTI"]
[{"v":213,"d":"213."},"PRINCIPATUS D.O.O.","22879305472","BANJAVČIĆEVA 22, ZAGREB",482.85,"EUR","2026/2","3233","Usluge promidžbe i informiranja","FAKULTET PROMETNIH ZNANOSTI"]
[{"v":214,"d":"214."},"ALGEBRA D.O.O.","24919984448","MAKSIMIRSKA 58A,, Zagreb",{"v":1113.75,"d":"1,113.75"},"EUR","2026/2","3213","Stručno usavršavanje zaposlenika","FAKULTET PROMETNIH ZNANOSTI"]
[{"v":215,"d":"215."},"ULIX D.O.O.","26561427801","MIRAMARSKA 26,, Zagreb",607.39,"EUR","2026/2","3211","Službena putovanja","FAKULTET PROMETNIH ZNANOSTI"]
[{"v":216,"d":"216."},"LINKS D.O.O.","32614011568","DANKOVEČKA 5,, Zagreb",{"v":2481.35,"d":"2,481.35"},"EUR","2026/2","4221","Uredska oprema i namještaj","FAKULTET PROMETNIH ZNANOSTI"]
[{"v":217,"d":"217."},"TELECARE D.O.O.","35315379989","BREZJE SAMOBORSKO, SIGET  I/25, Sveta Nedjelja",58.06,"EUR","2026/2","3232","Usluge tekućeg i investicijskog održavanja","FAKULTET PROMETNIH ZNANOSTI"]
[{"v":218,"d":"218."},"SAGOVI ZAGREB","35639958412","ZAGREB,, SLAVONSKA AVENIJA 90",216.54,"EUR","2026/2","3221","Uredski materijal i ostali materijalni rashodi","FAKULTET PROMETNIH ZNANOSTI"]
[{"v":219,"d":"219."},"SVEUČILIŠTE U ZAGREBU","36612267447","TRG REPUBLIKE HRVATSKE 14, Zagreb",{"v":119,"d":"119.00"},"EUR","2026/2","3237","Intelektualne i osobne usluge","FAKULTET PROMETNIH ZNANOSTI"]
[{"v":220,"d":"220."},"LACONIQ D.O.O.","38976470104","ULICA GRADA VUKOVARA 23, ZAGREB",888.89,"EUR","2026/2","3233","Usluge promidžbe i informiranja","FAKULTET PROMETNIH ZNANOSTI"]
[{"v":221,"d":"221."},"SMART SMART D.O.O.","43650159060","CEGLJE 83, JASTREBARSKO",{"v":200,"d":"200.00"},"EUR","2026/2","3232","Usluge tekućeg i investicijskog održavanja","FAKULTET PROMETNIH ZNANOSTI"]
[{"v":222,"d":"222."},"GRENKE GC RENTING CROATIA D.O.O.","44115087893","AV.VEĆESLAVA HOLJEVCA 40,, Zagreb",358.65,"EUR","2026/2","3235","Zakupnine i najamnine","FAKULTET PROMETNIH ZNANOSTI"]
[{"v":223,"d":"223."},"TECH4YOU D.O.O.","46965999691","ŠTEFANOVEČKA CESTA 38, ZAGREB",{"v":2763,"d":"2,763.00"},"EUR","2026/2","4221","Uredska oprema i namještaj","FAKULTET PROMETNIH ZNANOSTI"]
[{"v":224,"d":"224."},"EFFECTUS STUDIJ FINANCIJE I PRAVO","47182242398","TRG J.F.KENNEDY 2,, ZAGREB",{"v":2250,"d":"2,250.00"},"EUR","2026/2","3213","Stručno usavršavanje zaposlenika","FAKULTET PROMETNIH ZNANOSTI"]
[{"v":225,"d":"225."},"DRŽAVNI ZAVOD ZA STATISTIKU","49337502853","ILICA 3,, Zagreb",{"v":107.5,"d":"107.50"},"EUR","2026/2","3237","Intelektualne i osobne usluge","FAKULTET PROMETNIH ZNANOSTI"]
[{"v":226,"d":"226."},"TEHNIČAR SERVAG D.O.O.","49911547627","CRNOJEZERSKA 18, Zagreb",{"v":2162.19,"d":"2,162.19"},"EUR","2026/2","3232","Usluge tekućeg i investicijskog održavanja","FAKULTET PROMETNIH ZNANOSTI"]
[{"v":227,"d":"227."},"EURO-VRT D.O.O.","57968446706","ULICA GRADA GOSPIĆA 3,, Zagreb",{"v":61,"d":"61.00"},"EUR","2026/2","3224","Materijal i dijelovi za tekuće i investicijsko održavanje","FAKULTET PROMETNIH ZNANOSTI"]
[{"v":228,"d":"228."},"EURO-VRT D.O.O.","57968446706","ULICA GRADA GOSPIĆA 3,, Zagreb",{"v":1350.8,"d":"1,350.80"},"EUR","2026/2","4223","Oprema za održavanje i zaštitu","FAKULTET PROMETNIH ZNANOSTI"]
[{"v":229,"d":"229."},"DOITBETTER, OBRT ZA USLUGE VL. DALIBOR KREMINSKI","GDPR","GDPR",{"v":380,"d":"380.00"},"EUR","2026/2","3239","Ostale usluge","FAKULTET PROMETNIH ZNANOSTI"]
[{"v":230,"d":"230."},"HRT HRVATSKA RADIO TELEVIZIJA","68419124305","PRISAVLJE 3,, Zagreb",{"v":53.1,"d":"53.10"},"EUR","2026/2","3231","Usluge telefona, interneta, pošte i prijevoza","FAKULTET PROMETNIH ZNANOSTI"]
[{"v":231,"d":"231."},"ZAJEDNICA INOVATORA HRVATSKE","69872404259","DALMATINSKA 12,, Zagreb",{"v":200,"d":"200.00"},"EUR","2026/2","3294","Članarine i norme","FAKULTET PROMETNIH ZNANOSTI"]
[{"v":232,"d":"232."},"HRVATSKI ZAVOD ZA NORME","76844168802","ULICA GRADA VUKOVARA 78,, Zagreb",663.61,"EUR","2026/2","3294","Članarine i norme","FAKULTET PROMETNIH ZNANOSTI"]
[{"v":233,"d":"233."},"IZAZOV TURISTIČKA AGENCIJA d.o.o.","79770586926","A.T. MIMARE 38, ZAGREB",{"v":345,"d":"345.00"},"EUR","2026/2","3239","Ostale usluge","FAKULTET PROMETNIH ZNANOSTI"]
[{"v":234,"d":"234."},"TEMPORIS SAVJETOVANJE D.O.O.","80885983918","KUTNJAČKI PUT 2A,, Zagreb",380.25,"EUR","2026/2","3221","Uredski materijal i ostali materijalni rashodi","FAKULTET PROMETNIH ZNANOSTI"]
[{"v":235,"d":"235."},"TRGOVINA","82881498230","PRVOMAJSKA 140, MIHOVLJAN, ČAKOVEC",{"v":1445,"d":"1,445.00"},"EUR","2026/2","3225","Sitni inventar i autogume","FAKULTET PROMETNIH ZNANOSTI"]
[{"v":236,"d":"236."},"LUSTRE","84378972903","TRG SENJSKIH USKOKA 7, ZAGREB",{"v":936,"d":"936.00"},"EUR","2026/2","3224","Materijal i dijelovi za tekuće i investicijsko održavanje","FAKULTET PROMETNIH ZNANOSTI"]
[{"v":237,"d":"237."},"ZAGREBAČKI HODLING d.o.o. PODRUŽNICA ČISTOĆA","85584865987","RADNIČKA CESTA 82,, Zagreb",23.88,"EUR","2026/2","3234","Komunalne usluge","FAKULTET PROMETNIH ZNANOSTI"]
[{"v":238,"d":"238."},"MASS SHOES D.O.O.","94682632604","LIJEPE NAŠE 6, KLANJEC",{"v":1079.88,"d":"1,079.88"},"EUR","2026/2","3227","Službena, radna i zaštitna odjeća i obuća","FAKULTET PROMETNIH ZNANOSTI"]
[{"v":239,"d":"239."},"SREDNJA STRUKOVNA ŠKOLA VINKOVCI","96073481644","STANKA VRAZA 15, VINKOVCI",{"v":50,"d":"50.00"},"EUR","2026/2","3213","Stručno usavršavanje zaposlenika","FAKULTET PROMETNIH ZNANOSTI"]
[]
["UKUPNO:",{"$nulls":3},{"$f":"SUBTOTAL(9,E7:E246)","v":{"v":460812.7399999996,"d":"460,812.74"}}]

{"sheet":"Sheet2","index":1,"n_rows":0,"n_cols":0,"rows_kept":0}